fUST/lending_fUST_20241031
["ID","MTS","AMOUNT","RATE_DAILY","PERIOD"]
[341084587,1730357226248,-168.04218,0.00029081,2]
[341084588,1730357226272,-168.04218,0.00029329,2]
[341084589,1730357226295,-260.485359,0.00029492,2]
[341084590,1730357226318,-168.04218,0.00029577,2]
[341084591,1730357226344,-168.04218,0.00029825,2]
[341084592,1730357226365,-450.0,0.0003,30]
[341084593,1730357226386,-151.0,0.0003,120]
[341084594,1730357226408,-168.04218,0.00030074,2]
[341084595,1730357226429,-500.0,0.00030136,5]
[341084596,1730357226451,-500.0,0.00030136,5]
[341084597,1730357226472,-500.0,0.00030136,5]
[341084598,1730357226493,-500.0,0.00030136,5]
[341084599,1730357226515,-500.0,0.00030136,2]
[341084600,1730357226538,-299.44031113,0.00030136,5]
[341084601,1730357226560,-500.0,0.00030136,5]
[341084602,1730357226585,-260.485359,0.00030177,2]
[341084603,1730357226607,-500.0,0.0003041,5]
[341084604,1730357226629,-1910.06206742,0.00030518,2]
[341084605,1730357226653,-500.0,0.00030617,5]
[341084606,1730357226674,-500.0,0.00030617,5]
[341084607,1730357226695,-500.0,0.00030617,5]
[341084608,1730357226717,-500.0,0.00030617,5]
[341084609,1730357226745,-500.0,0.00030617,5]
[341084610,1730357226770,-500.0,0.00030617,5]
[341084611,1730357226793,-837.53,0.00030617,3]
[341084612,1730357226817,-500.0,0.00030617,5]
[341084613,1730357226842,-581.22,0.00030617,5]
[341084614,1730357226864,-500.0,0.00030617,5]
[341084615,1730357226886,-5000.0,0.00030617,2]
[341084616,1730357226908,-370.31186494,0.00030617,5]
[341084617,1730357226934,-500.0,0.00030617,5]
[341084618,1730357226957,-500.0,0.00030617,5]
[341084619,1730357226977,-501.53961599,0.00030617,2]
[341084620,1730357226999,-500.0,0.00030617,2]
[341084621,1730357227021,-500.0,0.00030617,2]
[341084622,1730357227043,-370.65402092,0.00030617,2]
[341084623,1730357227063,-539.18783749,0.00030617,2]
[341084624,1730357227087,-500.0,0.00030617,2]
[341084625,1730357227110,-500.0,0.00030617,2]
[341084626,1730357227130,-500.8102928,0.00030617,2]
[341084627,1730357227152,-502.24011895,0.00030617,2]
[341084628,1730357227173,-500.0,0.00030617,2]
[341084629,1730357227195,-500.0,0.00030617,2]
[341084630,1730357227216,-500.0,0.00030617,2]
[341084631,1730357227238,-500.0,0.00030617,2]
[341084632,1730357227260,-500.0,0.00030617,2]
[341084633,1730357227281,-500.0,0.00030617,2]
[341084634,1730357227421,-500.0,0.00030617,2]
[341084635,1730357227445,-500.0,0.00030617,2]
[341084636,1730357227468,-578.01048216,0.00030617,2]
[341084637,1730357227494,-324.79177985,0.00030617,2]
[341084638,1730357227519,-237.28615098,0.00030617,2]
[341084639,1730357227542,-500.0,0.00030618,5]
[341084640,1730357227564,-500.0,0.00030618,5]
[341084641,1730357227588,-500.0,0.00030618,5]
[341084642,1730357227609,-500.0,0.00030618,5]
[341084643,1730357227632,-436.89668452,0.00030618,5]
[341084644,1730357227655,-500.0,0.00030618,5]
[341084645,1730357227678,-500.0,0.00030618,5]
[341084646,1730357227701,-500.0,0.00030618,5]
[341084647,1730357227725,-500.0,0.00030618,5]
[341084648,1730357227751,-521.08506662,0.00030618,5]
[341084649,1730357227777,-500.0,0.00030618,5]
[341084650,1730357227800,-500.0,0.00030618,5]
[341084651,1730357227821,-500.0,0.00030618,5]
[341084652,1730357227846,-581.7,0.00030618,5]
[341084653,1730357227868,-500.0,0.00030618,2]
[341084654,1730357227891,-500.0,0.00030618,5]
[341084655,1730357227913,-500.0,0.00030618,5]
[341084656,1730357227935,-500.0,0.00030618,5]
[341084657,1730357227956,-553.07315355,0.00030618,5]
[341084658,1730357227977,-500.0,0.00030618,5]
[341084659,1730357228001,-500.0,0.00030618,5]
[341084660,1730357228022,-500.0,0.00030673,5]
[341084661,1730357228043,-502.98996408,0.00030673,5]
[341084662,1730357228064,-500.0,0.00030673,5]
[341084663,1730357228085,-500.0,0.00030673,2]
[341084664,1730357228106,-500.0,0.00030683,2]
[341084665,1730357228128,-500.0,0.00030684,5]
[341084666,1730357228150,-505.01901557,0.00030891,7]
[341084667,1730357228172,-547.99,0.00030891,5]
[341084668,1730357228196,-500.0,0.00030891,5]
[341084669,1730357228220,-121.74922825,0.00030891,3]
[341084670,1730357234215,-715.78077175,0.00030891,3]
[341084671,1730357234241,-446.14,0.00030891,5]
[341084672,1730357234263,-183.92845228,0.00030891,2]
[341084673,1730357237095,-668.70223603,0.00030891,2]
[341084674,1730357237117,-637.54121292,0.00030892,5]
[341084675,1730357237142,-436.25502406,0.00030892,5]
[341084676,1730357237179,-63.74497594,0.00030892,5]
[341084677,1730357237202,-500.0,0.00030892,5]
[341084678,1730357237225,-13.52644137,0.00030958,5]
[341084679,1730357242112,-152.87263571,0.00028595,2]
[341084680,1730357242135,-486.47355863,0.00030958,5]
[341084681,1730357242159,-500.0,0.00031165,5]
[341084682,1730357242182,-837.53,0.00031165,3]
[341084683,1730357242203,-500.0,0.00031166,5]
[341084684,1730357242227,-500.0,0.00031166,5]
[341084685,1730357242247,-500.0,0.00031232,5]
[341084686,1730357242272,-350.73947238,0.00031439,5]
[341084687,1730357245316,-149.26052762,0.00031439,5]
[341084688,1730357245341,-234.11479374,0.00031439,3]
[341084699,1730357348162,-500.0,0.00027,30]
[341084703,1730357383472,159.620109,0.00013973,2]
[341084731,1730357431889,-500.0,0.00030616,5]
[341084732,1730357431898,-500.0,0.00030616,5]
[341084733,1730357431908,-971.59,0.00030616,3]
[341084734,1730357431919,-500.0,0.00030616,5]
[341084735,1730357431928,-300.0,0.00030616,2]
[341084736,1730357431938,-500.0,0.00030617,5]
[341084737,1730357431947,-500.0,0.00030617,5]
[341084738,1730357431957,-500.0,0.00030618,5]
[341084739,1730357431966,-500.0,0.00030618,5]
[341084740,1730357431975,-240.7763761,0.00030692,2]
[341084741,1730357431984,-500.0,0.0003089,5]
[341084742,1730357431994,-500.0,0.0003089,5]
[341084743,1730357432003,-971.59,0.0003089,3]
[341084744,1730357432013,-218.6873858,0.0003089,5]
[341084746,1730357432023,-500.0,0.00030891,5]
[341084747,1730357432033,-500.0,0.00030891,5]
[341084748,1730357432044,-500.0,0.00030892,5]
[341084749,1730357432053,-500.0,0.00030892,5]
[341084750,1730357432063,-172.89655027,0.00031164,5]
[341084751,1730357432073,-500.0,0.00031164,5]
[341084752,1730357432083,-971.59,0.00031164,3]
[341084753,1730357432093,-500.0,0.00031165,5]
[341084754,1730357432102,-500.0,0.00031165,5]
[341084755,1730357432112,-500.0,0.00031166,5]
[341084756,1730357432121,-500.0,0.00031166,5]
[341084757,1730357432130,-214.997907,0.00031385,2]
[341084758,1730357432140,-500.0,0.00031438,5]
[341084759,1730357432150,-971.59,0.00031438,3]
[341084760,1730357432159,-500.0,0.00031439,5]
[341084761,1730357432168,-500.0,0.00031439,5]
[341084762,1730357432177,-500.0,0.0003144,5]
[341084763,1730357432187,-500.0,0.0003144,5]
[341084764,1730357432196,-500.0,0.0003144,5]
[341084765,1730357432205,-500.0,0.00031712,5]
[341084766,1730357432215,-971.59,0.00031712,3]
[341084767,1730357432224,-500.0,0.00031713,5]
[341084768,1730357432233,-500.0,0.00031713,5]
[341084769,1730357432243,-500.0,0.00031714,5]
[341084770,1730357432252,-500.0,0.00031714,5]
[341084771,1730357432261,-1910.06206741,0.00031857,2]
[341084772,1730357432271,-157.924,0.0003197,30]
[341084773,1730357432280,-500.0,0.00031986,5]
[341084774,1730357432289,-971.59,0.00031986,3]
[341084775,1730357432299,-500.0,0.00031987,5]
[341084776,1730357432308,-500.0,0.00031987,5]
[341084777,1730357432317,-500.0,0.00031988,5]
[341084778,1730357432327,-500.0,0.00031988,5]
[341084779,1730357432336,-163.035522,0.00032244,2]
[341084780,1730357432345,-500.0,0.0003226,5]
[341084781,1730357432354,-971.59,0.0003226,3]
[341084782,1730357432363,-500.0,0.00032261,5]
[341084783,1730357432374,-500.0,0.00032262,5]
[341084784,1730357432384,-500.0,0.00032262,5]
[341084785,1730357432393,-151.0,0.00032411,120]
[341084786,1730357432403,-500.0,0.00032534,5]
[341084787,1730357432412,-971.59,0.00032534,3]
[341084788,1730357432421,-500.0,0.00032535,5]
[341084789,1730357432430,-500.0,0.00032536,5]
[341084790,1730357432439,-500.0,0.00032536,5]
[341084791,1730357432448,-500.0,0.00032536,5]
[341084792,1730357432458,-340.89075643,0.00032536,5]
[341084793,1730357432467,-500.0,0.00032536,2]
[341084794,1730357432476,-157.909,0.000327,6]
[341084795,1730357432486,-500.0,0.00032808,5]
[341084796,1730357432496,-971.59,0.00032808,3]
[341084797,1730357432505,-384.12338932,0.00032809,5]
[341084798,1730357432514,-500.0,0.0003281,5]
[341084799,1730357432524,-273.90898757,0.0003281,5]
[341084800,1730357432533,-500.0,0.00032876,2]
[341084801,1730357432542,-401.5,0.00033,2]
[341084802,1730357432551,-500.0,0.00033082,5]
[341084803,1730357432561,-971.59,0.00033082,3]
[341084804,1730357432571,-500.0,0.00033084,5]
[341084805,1730357432582,-336.67934371,0.00033196,7]
[341084806,1730357432591,-1910.06206741,0.00033196,2]
[341084807,1730357432600,-157.875,0.0003327,2]
[341084808,1730357432609,-150.0,0.00033302,2]
[341084809,1730357432618,-426.85,0.00033302,2]
[341084810,1730357432627,-2395.0,0.00033302,2]
[341084811,1730357432636,-1143.0,0.00033302,2]
[341084812,1730357432646,-500.0,0.00033356,5]
[341084813,1730357432655,-971.59,0.00033356,3]
[341084814,1730357432664,-500.0,0.00033358,5]
[341084815,1730357432673,-500.0,0.00033423,2]
[341084816,1730357432683,-158.22,0.0003343,5]
[341084817,1730357432692,-500.0,0.0003363,5]
[341084818,1730357432701,-971.59,0.0003363,3]
[341084819,1730357432711,-500.0,0.00033632,5]
[341084820,1730357432720,-500.0,0.00033904,5]
[341084821,1730357432730,-971.59,0.00033904,3]
[341084822,1730357432739,-500.0,0.00033906,5]
[341084823,1730357432748,-500.0,0.00034178,5]
[341084824,1730357432757,-971.59,0.00034178,3]
[341084825,1730357432767,-500.0,0.0003418,5]
[341084826,1730357432776,-230.89005357,0.00034452,7]
[341084827,1730357432786,-248.58735011,0.00034452,7]
[341084828,1730357432795,-202.75464221,0.00034452,7]
[341084829,1730357432805,-500.0,0.00034452,5]
[341084830,1730357432814,-971.59,0.00034452,3]
[341084831,1730357432824,-500.0,0.00034454,5]
[341084832,1730357432833,-159.620109,0.00034475,2]
[341084833,1730357432842,-703.3,0.000345,2]
[341084834,1730357432851,-1910.06206741,0.00034535,2]
[341084835,1730357432861,-153.0,0.00034603,2]
[341084836,1730357432870,-157.928,0.000347,120]
[341084837,1730357432879,-500.0,0.00034726,5]
[341084838,1730357432889,-971.59,0.00034726,3]
[341084839,1730357432898,-500.0,0.00034728,5]
[341084840,1730357432907,-151.0,0.00034822,120]
[341084841,1730357432916,-600.0,0.00034891,2]
[341084842,1730357432926,-229.35619328,0.00035,5]
[341084843,1730357432935,-971.59,0.00035,3]
[341084844,1730357432946,-500.0,0.00035002,5]
[341084845,1730357432957,-6021.823,0.00035098,7]
[341084846,1730357432966,-287.867,0.00035098,7]
[341084847,1730357432976,-150.0,0.00035098,7]
[341084848,1730357432985,-600.0,0.00035255,2]
[341084849,1730357432994,-971.59,0.00035274,3]
[341084850,1730357433004,-500.0,0.00035276,5]
[341084851,1730357433014,-151.0,0.00035373,15]
[341084852,1730357433023,-153.0,0.00035425,2]
[341084853,1730357433035,-311.413777,0.00035425,2]
[341084854,1730357433044,-971.59,0.00035548,3]
[341084855,1730357433053,-500.0,0.0003555,5]
[341084856,1730357433063,-531.7150525,0.00035589,60]
[341084857,1730357433073,-500.0,0.00035616,5]
[341084858,1730357433083,-1000.0,0.00035616,120]
[341084859,1730357433092,-1000.0,0.00035616,120]
[341084860,1730357433102,-1000.0,0.00035616,120]
[341084861,1730357433113,-1000.0,0.00035616,120]
[341084862,1730357433123,-1000.0,0.00035616,120]
[341084863,1730357433133,-1000.0,0.00035616,120]
[341084864,1730357433142,-1000.0,0.00035616,120]
[341084865,1730357433152,-1000.0,0.00035616,120]
[341084866,1730357433161,-1000.0,0.00035616,120]
[341084867,1730357433171,-1000.0,0.00035616,120]
[341084868,1730357433181,-1000.0,0.00035616,120]
[341084869,1730357433191,-627.66213143,0.00035616,120]
[341084870,1730357433200,-999.0,0.00035616,120]
[341084871,1730357433210,-150.97048438,0.00035617,2]
[341084872,1730357433220,-1562.18396405,0.00035617,2]
[341084873,1730357433230,-600.0,0.00035618,2]
[341084874,1730357433241,-24811.73986923,0.000357,6]
[341084875,1730357434164,-5834.42760884,0.000357,6]
[341084876,1730357434176,-319.31252,0.000357,6]
[341084877,1730357434192,-477.58602924,0.000357,6]
[341084878,1730357434203,-3434.39963532,0.000357,6]
[341084879,1730357434213,-367.19,0.000357,30]
[341084880,1730357434222,-230.8,0.000357,30]
[341084881,1730357434231,-525.0,0.000357,2]
[341084882,1730357434241,-2457.35460173,0.0003577,2]
[341084906,1730357438099,-326.98626984,0.00030617,5]
[341084907,1730357438108,-321.328562,0.00035619,15]
[341084908,1730357438118,-2079.75749409,0.0003577,2]
[341084909,1730357438128,-150.112233,0.000358,10]
[341084910,1730357438137,-150.112233,0.000358,18]
[341084911,1730357438147,-151.0,0.00035819,15]
[341084912,1730357438156,-971.59,0.00035822,3]
[341084913,1730357438165,-1910.06206741,0.00035873,2]
[341084914,1730357438175,-1000.0,0.00035882,2]
[341084915,1730357438184,-1000.0,0.0003589,120]
[341084916,1730357438194,-271.0,0.0003589,2]
[341084917,1730357438204,-300.0,0.000359,12]
[341084918,1730357438214,-500.0,0.00035967,5]
[341084919,1730357438224,-500.0,0.00035973,5]
[341084920,1730357438233,-400.27871358,0.00035973,5]
[341084931,1730357439944,-99.72128642,0.00035973,5]
[341084933,1730357439955,-500.0,0.00035973,5]
[341084935,1730357439964,-500.0,0.00035973,5]
[341084937,1730357439974,-120.73807556,0.00035973,5]
[341084939,1730357439986,-379.26192444,0.00035973,5]
[341084941,1730357439997,-220.86445123,0.00035973,5]
[341084944,1730357440012,-279.13554877,0.00035973,5]
[341084946,1730357440023,-6.1633338,0.00035973,5]
[341084948,1730357440039,-493.8366662,0.00035973,5]
[341084950,1730357440050,-554.43829781,0.00035982,2]
[341084952,1730357440062,-213.23093574,0.00035982,2]
[341084954,1730357440072,-41.2902657,0.00035982,2]
[341084956,1730357440086,-770.359144,0.00035982,2]
[341084958,1730357440097,-1182.26044614,0.00035982,2]
[341084995,1730357446012,-159.988,0.00033302,2]
[341084996,1730357446022,-252.69,0.00033302,2]
[341084997,1730357446036,-37.437044,0.0003544,2]
[341084998,1730357830769,3504.33,0.00034435,30]
[341085000,1730357878049,162.798367,0.00013973,2]
[341085001,1730358334891,169.51233886,0.000125,2]
[341085002,1730358355155,-1859.99346262,0.00024,3]
[341085003,1730358368877,159.500075,0.00013973,2]
[341085005,1730358434146,-300.0,0.00023999,2]
[341085006,1730358434168,-300.0,0.00023999,2]
[341085007,1730358434189,-1195.39880341,0.00024,3]
[341085008,1730358439096,-3615.42383401,0.00024,3]
[341085009,1730358446146,-1671.08133083,0.00024,3]
[341085010,1730358448117,-1942.06563608,0.00024,3]
[341085011,1730358449098,-923.27522879,0.00024,3]
[341085012,1730358547164,-275.0,0.00023999,2]
[341085013,1730358547187,-300.0,0.00023999,2]
[341085014,1730358547211,-14792.76170426,0.00024,3]
[341085015,1730358547235,-650.0,0.00024,3]
[341085016,1730358547257,-162.950701,0.00028196,2]
[341085017,1730358547279,-230.0198582,0.00028324,2]
[341085018,1730358547300,-1502.7798739,0.00028624,2]
[341085019,1730358547321,-239.86796744,0.00029,2]
[341085020,1730358560128,-167.938752,0.00029222,2]
[341085021,1730358560151,-167.938752,0.00029246,2]
[341085022,1730358560173,-167.938752,0.00029271,2]
[341085023,1730358560195,-166.9289919,0.00029293,2]
[341085024,1730358560218,-167.938752,0.00029295,2]
[341085025,1730358560240,-167.938752,0.00029319,2]
[341085026,1730358560261,-167.938752,0.00029344,2]
[341085027,1730358560283,-167.938752,0.00029368,2]
[341085028,1730358560319,-166.517471,0.00029673,2]
[341085029,1730358560343,-166.517471,0.00029931,2]
[341085030,1730358560366,-151.0,0.0003,120]
[341085031,1730358560387,-162.950701,0.00030117,2]
[341085032,1730358560410,-181.95113641,0.00030136,5]
[341085033,1730358579202,500.0,0.00025767,2]
[341085034,1730358580032,1017.36711313,0.00023999,2]
[341085035,1730358580058,939.71787463,0.00023999,2]
[341085045,1730358632026,-531.928198,0.00029393,2]
[341085046,1730358632037,-24.14694306,0.00030078,2]
[341085047,1730358632050,-507.78125494,0.00030078,2]
[341085048,1730358632061,-318.04886359,0.00030136,5]
[341085049,1730358632071,-500.0,0.00030136,5]
[341085050,1730358632081,-500.0,0.00030136,5]
[341085051,1730358632092,-500.0,0.00030136,5]
[341085052,1730358632102,-1155.98,0.00030136,3]
[341085053,1730358632112,-500.0,0.00030136,5]
[341085054,1730358632122,-166.517471,0.00030189,2]
[341085055,1730358632131,-500.0,0.0003036,5]
[341085056,1730358632141,-500.0,0.0003036,2]
[341085057,1730358632151,-500.0,0.0003036,5]
[341085058,1730358632161,-500.0,0.0003041,5]
[341085059,1730358632171,-500.0,0.0003041,5]
[341085060,1730358632181,-341.76,0.0003041,5]
[341085061,1730358632191,-1155.98,0.0003041,3]
[341085062,1730358632202,-500.0,0.0003041,5]
[341085063,1730358632212,-166.517471,0.00030446,2]
[341085064,1730358632221,-500.0,0.00030684,5]
[341085065,1730358632233,-500.0,0.00030684,5]
[341085066,1730358632245,-1155.98,0.00030684,3]
[341085067,1730358632256,-500.0,0.00030684,5]
[341085068,1730358632266,-166.517471,0.00030704,2]
[341085069,1730358632275,-531.928198,0.00030763,2]
[341085070,1730358632287,-500.0,0.00030958,5]
[341085071,1730358632296,-500.0,0.00030958,5]
[341085072,1730358632308,-1155.98,0.00030958,3]
[341085073,1730358632320,-500.0,0.00030958,5]
[341085074,1730358632331,-166.517471,0.00030962,2]
[341085075,1730358632341,-168.42514107,0.00031205,2]
[341085076,1730358632350,-17687.23748368,0.00031206,2]
[341085077,1730358632364,-4270.75024721,0.00031206,2]
[341085090,1730358638124,-2942.01226911,0.00031206,2]
[341085092,1730358638134,-290.03862121,0.00031206,7]
[341085094,1730358638146,-166.517471,0.0003122,2]
[341085096,1730358638156,-500.0,0.00031232,5]
[341085098,1730358638166,-500.0,0.00031232,5]
[341085100,1730358638176,-1155.98,0.00031232,3]
[341085102,1730358638185,-500.0,0.00031232,5]
[341085104,1730358638199,-900.95490335,0.00031246,5]
[341085113,1730358638271,-99.04509665,0.00031246,5]
[341085115,1730358638281,-100.44365928,0.00031506,5]
[341085117,1730358638293,-399.55634072,0.00031506,5]
[341085119,1730358638303,-500.0,0.00031506,5]
[341085121,1730358638313,-1155.98,0.00031506,3]
[341085123,1730358638322,-500.0,0.00031506,5]
[341085126,1730358638333,-500.0,0.0003178,5]
[341085128,1730358638342,-500.0,0.0003178,5]
[341085129,1730358638351,-469.90967525,0.0003178,3]
[341085157,1730358640139,-686.07032475,0.0003178,3]
[341085159,1730358640151,-500.0,0.0003178,5]
[341085162,1730358640161,-162.950701,0.00032039,2]
[341085164,1730358640174,-500.0,0.00032054,5]
[341085166,1730358640184,-500.0,0.00032054,5]
[341085168,1730358640194,-1155.98,0.00032054,3]
[341085170,1730358640203,-500.0,0.00032328,5]
[341085172,1730358640214,-120.51214289,0.00032328,3]
[341085175,1730358640226,-469.36421274,0.00032328,3]
[341085177,1730358640238,-566.10364437,0.00032328,3]
[341085179,1730358640248,-105.67572398,0.00032368,3]
[341085184,1730358640284,-54.32427602,0.00032368,3]
[341085186,1730358640293,-465.65013201,0.00032383,2]
[341085188,1730358640303,-151.0,0.00032411,120]
[341085190,1730358640313,-500.0,0.00032602,5]
[341085192,1730358640322,-1155.98,0.00032602,3]
[341085194,1730358640332,-153.0,0.00032658,2]
[341085197,1730358640342,-153.0,0.00032658,2]
[341085198,1730358640351,-153.0,0.00032658,2]
[341085200,1730358640361,-151.0,0.00032802,7]
[341085202,1730358640370,-500.0,0.00032876,2]
[341085205,1730358640379,-500.0,0.00032876,5]
[341085207,1730358640389,-1155.98,0.00032876,3]
[341085208,1730358640401,-222.9798413,0.00032877,120]
[341085210,1730358640410,-622.47976531,0.0003291,5]
[341085213,1730358640420,-500.0,0.0003291,5]
[341085216,1730358640430,-500.0,0.0003291,5]
[341085217,1730358640439,-500.0,0.0003291,5]
[341085220,1730358640450,-500.0,0.0003291,5]
[341085222,1730358640460,-500.0,0.0003291,5]
[341085224,1730358640469,-500.0,0.0003291,5]
[341085226,1730358640479,-407.32839325,0.0003291,5]
[341085295,1730358646199,-116.40160675,0.0003291,5]
[341085297,1730358646209,-161.0,0.00033,2]
[341085298,1730358646220,-500.0,0.0003315,5]
[341085299,1730358646231,-1155.98,0.0003315,3]
[341085300,1730358646241,-500.0,0.00033184,5]
[341085301,1730358646252,-500.0,0.00033184,5]
[341085302,1730358646263,-500.0,0.00033184,5]
[341085303,1730358646274,-500.0,0.00033184,5]
[341085304,1730358646285,-500.0,0.00033184,5]
[341085305,1730358646296,-500.0,0.00033184,5]
[341085306,1730358646307,-523.73,0.00033184,5]
[341085307,1730358646318,-500.0,0.00033185,5]
[341085308,1730358646328,-500.0,0.00033185,5]
[341085309,1730358646338,-500.0,0.00033185,5]
[341085310,1730358646348,-151.0,0.00033193,7]
[341085311,1730358646357,-150.0,0.00033338,2]
[341085312,1730358646366,-528.0,0.00033338,2]
[341085313,1730358646375,-1143.0,0.00033338,2]
[341085314,1730358646384,-2395.0,0.00033338,2]
[341085315,1730358646393,-500.0,0.00033424,5]
[341085316,1730358646407,-1155.98,0.00033424,3]
[341085317,1730358646416,-154.386,0.0003345,2]
[341085318,1730358646425,-549.96285782,0.00033458,5]
[341085319,1730358646435,-500.0,0.00033458,5]
[341085320,1730358646445,-500.0,0.00033458,5]
[341085321,1730358646454,-413.61681336,0.00033458,5]
[341085322,1730358646464,-500.0,0.00033458,5]
[341085323,1730358646475,-500.0,0.00033458,5]
[341085324,1730358646487,-523.73,0.00033458,5]
[341085325,1730358646498,-151.0,0.00033584,7]
[341085326,1730358646508,-500.0,0.00033698,5]
[341085327,1730358646624,-1155.98,0.00033698,3]
[341085328,1730358646634,-500.0,0.00033732,5]
[341085329,1730358646644,-500.0,0.00033732,5]
[341085330,1730358646654,-500.0,0.00033732,5]
[341085331,1730358646663,-500.0,0.00033732,5]
[341085332,1730358646673,-523.73,0.00033732,5]
[341085333,1730358646682,-500.0,0.00033972,5]
[341085334,1730358646692,-1155.98,0.00033972,3]
[341085335,1730358646702,-151.0,0.00033975,7]
[341085336,1730358646711,-500.0,0.00034006,5]
[341085337,1730358646722,-500.0,0.00034006,5]
[341085338,1730358646732,-500.0,0.00034006,5]
[341085339,1730358646743,-500.0,0.00034006,5]
[341085340,1730358646753,-523.73,0.00034006,5]
[341085341,1730358646762,-154.375,0.0003401,2]
[341085342,1730358646772,-154.344,0.0003417,5]
[341085343,1730358646781,-224.9299934,0.00034245,7]
[341085344,1730358646790,-416.44365322,0.00034245,7]
[341085345,1730358646799,-500.0,0.00034246,5]
[341085346,1730358646810,-1155.98,0.00034246,3]
[341085347,1730358646820,-500.0,0.00034257,5]
[341085348,1730358646832,-505.6,0.0003427,3]
[341085349,1730358646844,-160.0,0.0003427,4]
[341085350,1730358646853,-500.0,0.0003428,5]
[341085351,1730358646863,-500.0,0.0003428,5]
[341085352,1730358646872,-500.0,0.0003428,5]
[341085353,1730358646882,-500.0,0.0003428,5]
[341085354,1730358646892,-523.73,0.0003428,5]
[341085355,1730358646903,-151.0,0.00034366,15]
[341085356,1730358646912,-305.0,0.00034435,30]
[341085357,1730358646921,-632.97,0.000345,2]
[341085358,1730358646932,-500.0,0.0003452,5]
[341085359,1730358646942,-1155.98,0.0003452,3]
[341085360,1730358646953,-645.68,0.00034553,5]
[341085361,1730358646963,-500.0,0.00034553,5]
[341085362,1730358646973,-500.0,0.00034553,5]
[341085363,1730358646982,-500.0,0.00034553,5]
[341085364,1730358646991,-523.73,0.00034553,5]
[341085365,1730358647001,-154.363,0.0003472,120]
[341085366,1730358647013,-151.0,0.00034757,15]
[341085367,1730358647024,-500.0,0.00034794,5]
[341085368,1730358647035,-1155.98,0.00034794,3]
[341085369,1730358647046,-151.0,0.00034822,120]
[341085370,1730358647056,-500.0,0.00034827,5]
[341085371,1730358647066,-500.0,0.00034827,5]
[341085372,1730358647075,-500.0,0.00034827,5]
[341085373,1730358647084,-523.73,0.00034827,5]
[341085374,1730358647093,-154.589,0.0003489,12]
[341085375,1730358647103,-226.7199,0.00035068,5]
[341085376,1730358647112,-1155.98,0.00035068,3]
[341085377,1730358647121,-500.0,0.00035101,5]
[341085378,1730358647131,-212.2,0.00035101,5]
[341085379,1730358647140,-500.0,0.00035101,5]
[341085380,1730358647150,-523.73,0.00035101,5]
[341085381,1730358647160,-294.834,0.00035132,7]
[341085382,1730358647169,-151.0,0.00035148,15]
[341085383,1730358647179,-161.669292,0.00035213,2]
[341085384,1730358647189,-448.678381,0.00035213,2]
[341085385,1730358647198,-1155.98,0.00035342,3]
[341085386,1730358647208,-500.0,0.00035375,5]
[341085387,1730358647219,-500.0,0.00035375,5]
[341085388,1730358647228,-523.73,0.00035375,5]
[341085389,1730358647237,-151.0,0.00035539,15]
[341085390,1730358647247,-500.0,0.00035615,2]